fUSD/lending_fUSD_20260515
["ID","MTS","AMOUNT","RATE_DAILY","PERIOD"]
[422283409,1778793048000,-4955.9,0.00020548,2]
[422283419,1778793048000,-4955.9,0.00020548,2]
[422283418,1778793048000,-4955.9,0.00020548,2]
[422283407,1778793048000,-4955.9,0.00020548,2]
[422283401,1778793048000,-4955.9,0.00020548,2]
[422283397,1778793048000,-4955.9,0.00020548,2]
[422283403,1778793048000,-4955.9,0.00020548,2]
[422283399,1778793048000,-4955.9,0.00020548,2]
[422283389,1778793048000,-1291.11,0.000204,2]
[422283387,1778793048000,-2254.1,0.00020381,2]
[422283385,1778793048000,-489.3729732,0.00020283,2]
[422283405,1778793048000,-4955.9,0.00020548,2]
[422283417,1778793048000,-4955.9,0.00020548,2]
[422283421,1778793048000,-4955.9,0.00020548,2]
[422283412,1778793048000,-4955.9,0.00020548,2]
[422283416,1778793048000,-4955.9,0.00020548,2]
[422283413,1778793048000,-4955.9,0.00020548,2]
[422283414,1778793048000,-4955.9,0.00020548,2]
[422283410,1778793048000,-4955.9,0.00020548,2]
[422283415,1778793048000,-4955.9,0.00020548,2]
[422283420,1778793048000,-4955.9,0.00020548,2]
[422283423,1778793048000,-4955.9,0.00020548,2]
[422283426,1778793048000,-4955.9,0.00020548,2]
[422283429,1778793048000,-4955.9,0.00020548,2]
[422283422,1778793048000,-4955.9,0.00020548,2]
[422283425,1778793048000,-4955.9,0.00020548,2]
[422283383,1778793048000,-173.2089846,0.00020283,2]
[422283411,1778793048000,-4955.9,0.00020548,2]
[422283395,1778793048000,-4955.9,0.00020548,2]
[422283371,1778793048000,-200.0,0.00020247,2]
[422283381,1778793048000,-30240.2660144,0.00020283,2]
[422283431,1778793048000,-4955.9,0.00020548,2]
[422283335,1778793048000,-214.518505,0.000201,10]
[422283337,1778793048000,-527.7696768,0.0002012,2]
[422283339,1778793048000,-500.0,0.00020152,2]
[422283343,1778793048000,-371.59,0.000202,2]
[422283345,1778793048000,-30907.82,0.000202,2]
[422283341,1778793048000,-1584.0,0.00020186,2]
[422283347,1778793048000,-12795.63,0.000202,2]
[422283355,1778793048000,-2000.0,0.0002022,2]
[422283349,1778793048000,-546.50808962,0.00020205,2]
[422283353,1778793048000,-2000.0,0.0002022,2]
[422283351,1778793048000,-2000.0,0.0002022,2]
[422283357,1778793048000,-2000.0,0.0002022,2]
[422283370,1778793048000,-721.12765535,0.00020245,2]
[422283361,1778793048000,-2000.0,0.0002022,2]
[422283377,1778793048000,-251.11897888,0.00020247,2]
[422283373,1778793048000,-1069.23467738,0.00020247,2]
[422283375,1778793048000,-280.03725112,0.00020247,2]
[422283359,1778793048000,-2000.0,0.0002022,2]
[422283366,1778793048000,-1461.0,0.0002022,2]
[422283363,1778793048000,-2000.0,0.0002022,2]
[422283365,1778793048000,-2000.0,0.0002022,2]
[422283369,1778793048000,-621.78829552,0.00020245,2]
[422283368,1778793048000,-225.18697532,0.00020243,2]
[422283367,1778793048000,-365.0,0.0002022,2]
[422283379,1778793048000,-2781.82699784,0.00020247,2]
[422283391,1778793048000,-2873.77165228,0.0002041,30]
[422283393,1778793048000,-4955.9,0.00020548,2]
[422283430,1778793048000,-4955.9,0.00020548,2]
[422283432,1778793048000,-21796.06,0.00020548,2]
[422283424,1778793048000,-4955.9,0.00020548,2]
[422283458,1778793048000,-283.0,0.00021,2]
[422283462,1778793048000,-157.0,0.00021,2]
[422283466,1778793048000,-162.0,0.0002105,2]
[422283467,1778793048000,-257.0,0.0002105,2]
[422283465,1778793048000,-358.0,0.0002105,2]
[422283476,1778793048000,-1953.0,0.0002105,2]
[422283477,1778793048000,-724.85,0.00021205,2]
[422283469,1778793048000,-4071.0,0.0002105,2]
[422283468,1778793048000,-2932.0,0.0002105,2]
[422283471,1778793048000,-179.0,0.0002105,2]
[422283470,1778793048000,-232.0,0.0002105,2]
[422283473,1778793048000,-257.0,0.0002105,2]
[422283472,1778793048000,-717.0,0.0002105,2]
[422283464,1778793048000,-157.0,0.00021,2]
[422283475,1778793048000,-428.0,0.0002105,2]
[422283479,1778793048000,-200.0,0.00021343,2]
[422283488,1778793048000,-600.0,0.00021462,2]
[422283480,1778793048000,-1149.82182577,0.00021343,2]
[422283478,1778793048000,-163.89776069,0.00021278,2]
[422283485,1778793048000,-600.0,0.00021462,2]
[422283489,1778793048000,-600.0,0.00021462,2]
[422283490,1778793048000,-600.0,0.00021462,2]
[422283484,1778793048000,-270.3255266,0.00021404,2]
[422283482,1778793048000,-2991.49051684,0.00021343,2]
[422283486,1778793048000,-600.0,0.00021462,2]
[422283428,1778793048000,-4955.9,0.00020548,2]
[422283481,1778793048000,-270.0455652,0.00021343,2]
[422283487,1778793048000,-600.0,0.00021462,2]
[422283474,1778793048000,-209.0,0.0002105,2]
[422283463,1778793048000,-157.0,0.00021,2]
[422283483,1778793048000,-500.0,0.0002138,2]
[422283461,1778793048000,-157.0,0.00021,2]
[422283427,1778793048000,-4955.9,0.00020548,2]
[422283435,1778793048000,-150.0,0.00020699,2]
[422283433,1778793048000,-150.0,0.00020699,2]
[422283443,1778793048000,-1223.0,0.00020699,2]
[422283434,1778793048000,-150.0,0.00020699,2]
[422283437,1778793048000,-150.0,0.00020699,2]
[422283438,1778793048000,-150.0,0.00020699,2]
[422283459,1778793048000,-525.0485446,0.00021,2]
[422283441,1778793048000,-3542.0,0.00020699,2]
[422283442,1778793048000,-1270.0,0.00020699,2]
[422283439,1778793048000,-926.0,0.00020699,2]
[422283440,1778793048000,-625.0,0.00020699,2]
[422283444,1778793048000,-3630.0,0.00020699,2]
[422283436,1778793048000,-150.0,0.00020699,2]
[422283454,1778793048000,-10000.0,0.00021,2]
[422283460,1778793048000,-500.0,0.00021,2]
[422283446,1778793048000,-22954.00210992,0.000207,2]
[422283457,1778793048000,-3409.17594098,0.00021,7]
[422283453,1778793048000,-1973.35553362,0.000209,30]
[422283451,1778793048000,-260.4103811,0.00020795,2]
[422283455,1778793048000,-1208.58873252,0.00021,2]
[422283452,1778793048000,-2884.75459676,0.00020795,2]
[422283456,1778793048000,-199.47026326,0.00021,2]
[422283449,1778793048000,-1108.79636044,0.00020795,2]
[422283445,1778793048000,-6052.0,0.00020699,2]
[422283450,1778793048000,-291.77954722,0.00020795,2]
[422283448,1778793048000,-200.0,0.00020795,2]
[422283447,1778793048000,-500.0,0.00020757,2]
[422283524,1778793049000,-151.0,0.00021918,2]
[422283527,1778793049000,-151.0,0.00021918,2]
[422283526,1778793049000,-151.0,0.00021918,2]
[422283525,1778793049000,-151.0,0.00021918,2]
[422283523,1778793049000,-151.0,0.00021918,2]
[422283530,1778793049000,-151.0,0.00021918,2]
[422283521,1778793049000,-151.0,0.00021918,2]
[422283519,1778793049000,-5000.0,0.00021918,2]
[422283531,1778793049000,-245.85329,0.00021918,2]
[422283532,1778793049000,-150.0,0.00021918,2]
[422283522,1778793049000,-151.0,0.00021918,2]
[422283529,1778793049000,-151.0,0.00021918,2]
[422283545,1778793049000,-172.0,0.00022,2]
[422283534,1778793049000,-150.0,0.00021918,2]
[422283533,1778793049000,-150.0,0.00021918,2]
[422283538,1778793049000,-150.0,0.00021918,2]
[422283540,1778793049000,-150.0,0.00021918,2]
[422283537,1778793049000,-150.0,0.00021918,2]
[422283536,1778793049000,-150.0,0.00021918,2]
[422283535,1778793049000,-150.0,0.00021918,2]
[422283541,1778793049000,-162.85059046,0.00021918,2]
[422283543,1778793049000,-11709.58328555,0.00022,4]
[422283539,1778793049000,-150.0,0.00021918,2]
[422283542,1778793049000,-500.0,0.00021933,2]
[422283520,1778793049000,-151.0,0.00021918,2]
[422283528,1778793049000,-151.0,0.00021918,2]
[422283511,1778793049000,-8163.28,0.0002191,2]
[422283501,1778793049000,-2000.0,0.00021466,2]
[422283515,1778793049000,-151.0,0.00021918,2]
[422283544,1778793049000,-450.0,0.00022,2]
[422283491,1778793049000,-600.0,0.00021462,2]
[422283492,1778793049000,-600.0,0.00021462,2]
[422283493,1778793049000,-600.0,0.00021462,2]
[422283495,1778793049000,-2000.0,0.00021466,2]
[422283497,1778793049000,-2000.0,0.00021466,2]
[422283496,1778793049000,-2000.0,0.00021466,2]
[422283494,1778793049000,-169.0,0.00021462,2]
[422283503,1778793049000,-2000.0,0.00021466,2]
[422283499,1778793049000,-2000.0,0.00021466,2]
[422283502,1778793049000,-2000.0,0.00021466,2]
[422283500,1778793049000,-2000.0,0.00021466,2]
[422283498,1778793049000,-2000.0,0.00021466,2]
[422283504,1778793049000,-2000.0,0.00021466,2]
[422283506,1778793049000,-153.1219113,0.000215,15]
[422283516,1778793049000,-151.0,0.00021918,2]
[422283518,1778793049000,-299.361913,0.00021918,2]
[422283508,1778793049000,-233.51889341,0.00021612,2]
[422283517,1778793049000,-151.0,0.00021918,2]
[422283507,1778793049000,-160.21945259,0.000215,15]
[422283505,1778793049000,-9902.87572427,0.000215,2]
[422283510,1778793049000,-280.03725112,0.00021891,2]
[422283513,1778793049000,-151.0,0.00021918,2]
[422283512,1778793049000,-151.0,0.00021918,2]
[422283514,1778793049000,-151.0,0.00021918,2]
[422283509,1778793049000,-1192.36523333,0.00021891,2]
[422283546,1778793049000,-272.0,0.00022,2]
[422283567,1778793049000,-1367.83,0.00022466,2]
[422283547,1778793049000,-500.0,0.00022021,2]
[422283577,1778793049000,-747.8093786,0.00022984,2]
[422283576,1778793049000,-644.79446246,0.00022984,2]
[422283574,1778793049000,-374.0,0.000228,3]
[422283578,1778793049000,-301.1433787,0.00022987,2]
[422283582,1778793049000,-311277.04236771,0.00023,2]
[422283584,1778793049000,-214.95940296,0.00023,30]
[422283586,1778793049000,-200.0,0.00023,30]
[422283585,1778793049000,-200.0,0.00023,30]
[422283583,1778793049000,-2373.91134611,0.00023,2]
[422283587,1778793049000,-200.0,0.00023,30]
[422283589,1778793049000,-154.0,0.00023,30]
[422283591,1778793049000,-154.0,0.00023,30]
[422283593,1778793049000,-154.0,0.00023,30]
[422283590,1778793049000,-154.0,0.00023,30]
[422283592,1778793049000,-154.0,0.00023,30]
[422283594,1778793049000,-154.0,0.00023,30]
[422283595,1778793049000,-154.0,0.00023,30]
[422283598,1778793049000,-154.0,0.00023,30]
[422283596,1778793049000,-154.0,0.00023,30]
[422283600,1778793049000,-154.0,0.00023,30]
[422283597,1778793049000,-154.0,0.00023,30]
[422283599,1778793049000,-154.0,0.00023,30]
[422283603,1778793049000,-154.0,0.00023,30]
[422283602,1778793049000,-154.0,0.00023,30]
[422283555,1778793049000,-717.0,0.0002205,2]
[422283581,1778793049000,-1000.0,0.00023,14]
[422283580,1778793049000,-4754.33510122,0.00023,2]
[422283588,1778793049000,-166.0,0.00023,30]
[422283579,1778793049000,-167.79,0.00023,14]
[422283548,1778793049000,-358.0,0.0002205,2]
[422283569,1778793049000,-35995.69229312,0.000225,2]
[422283549,1778793049000,-162.0,0.0002205,2]
[422283552,1778793049000,-4071.0,0.0002205,2]
[422283554,1778793049000,-179.0,0.0002205,2]
[422283550,1778793049000,-257.0,0.0002205,2]
[422283551,1778793049000,-2932.0,0.0002205,2]
[422283553,1778793049000,-232.0,0.0002205,2]
[422283556,1778793049000,-257.0,0.0002205,2]
[422283601,1778793049000,-154.0,0.00023,30]
[422283559,1778793049000,-1953.0,0.0002205,2]
[422283561,1778793049000,-1291.11,0.000222,7]
[422283557,1778793049000,-209.0,0.0002205,2]
[422283564,1778793049000,-765.41,0.00022466,2]
[422283560,1778793049000,-272.0,0.00022192,7]
[422283575,1778793049000,-161.9878218,0.00022981,2]
[422283562,1778793049000,-2254.1,0.00022353,2]
[422283572,1778793049000,-503.03240194,0.00022682,2]
[422283571,1778793049000,-268.58058186,0.00022681,21]
[422283570,1778793049000,-270.3255266,0.00022603,2]
[422283568,1778793049000,-508.61,0.00022466,2]
[422283573,1778793049000,-448.63,0.00022691,2]
[422283565,1778793049000,-1873.56,0.00022466,2]
[422283558,1778793049000,-428.0,0.0002205,2]
[422283563,1778793049000,-290.39862941,0.00022439,2]
[422283566,1778793049000,-1711.75,0.00022466,2]
[422283645,1778793050000,-4071.87215205,0.0002305,2]
[422283634,1778793050000,-159.0,0.00023,30]
[422283637,1778793050000,-363.0,0.00023,30]
[422283636,1778793050000,-200.0,0.00023,30]
[422283638,1778793050000,-160.0,0.00023,30]
[422283635,1778793050000,-159.0,0.00023,30]
[422283639,1778793050000,-172.0,0.00023014,7]
[422283641,1778793050000,-359.35142774,0.0002305,2]
[422283646,1778793050000,-245.0,0.0002305,2]
[422283640,1778793050000,-272.0,0.00023014,7]
[422283642,1778793050000,-162.0,0.0002305,2]
[422283648,1778793050000,-724.62383988,0.0002305,2]
[422283660,1778793050000,-150.0,0.00023699,2]
[422283644,1778793050000,-2945.91060419,0.0002305,2]
[422283643,1778793050000,-258.07597307,0.0002305,2]
[422283649,1778793050000,-273.39684226,0.0002305,2]
[422283651,1778793050000,-440.59630703,0.0002305,2]
[422283650,1778793050000,-216.54203541,0.0002305,2]
[422283652,1778793050000,-1961.12908863,0.0002305,2]
[422283654,1778793050000,-155.67492755,0.000232,2]
[422283653,1778793050000,-251.07,0.0002314,2]
[422283658,1778793050000,-150.0,0.00023699,2]
[422283657,1778793050000,-401.70812466,0.000235,2]
[422283633,1778793050000,-159.0,0.00023,30]
[422283647,1778793050000,-187.01962833,0.0002305,2]
[422283631,1778793050000,-159.0,0.00023,30]
[422283605,1778793050000,-154.0,0.00023,30]
[422283630,1778793050000,-159.0,0.00023,30]
[422283656,1778793050000,-5530.0,0.000234,5]
[422283604,1778793050000,-154.0,0.00023,30]
[422283606,1778793050000,-154.0,0.00023,30]
[422283611,1778793050000,-154.0,0.00023,30]
[422283610,1778793050000,-154.0,0.00023,30]
[422283609,1778793050000,-154.0,0.00023,30]
[422283608,1778793050000,-154.0,0.00023,30]
[422283607,1778793050000,-154.0,0.00023,30]
[422283613,1778793050000,-154.0,0.00023,30]
[422283615,1778793050000,-154.0,0.00023,30]
[422283616,1778793050000,-154.0,0.00023,30]
[422283612,1778793050000,-154.0,0.00023,30]
[422283629,1778793050000,-159.0,0.00023,30]
[422283614,1778793050000,-154.0,0.00023,30]
[422283628,1778793050000,-159.0,0.00023,30]
[422283617,1778793050000,-154.0,0.00023,30]
[422283620,1778793050000,-159.0,0.00023,30]
[422283619,1778793050000,-159.0,0.00023,30]
[422283625,1778793050000,-159.0,0.00023,30]
[422283627,1778793050000,-159.0,0.00023,30]
[422283621,1778793050000,-159.0,0.00023,30]
[422283624,1778793050000,-159.0,0.00023,30]
[422283623,1778793050000,-159.0,0.00023,30]
[422283622,1778793050000,-159.0,0.00023,30]
[422283626,1778793050000,-159.0,0.00023,30]
[422283632,1778793050000,-159.0,0.00023,30]
[422283618,1778793050000,-162.0,0.00023,30]
[422283655,1778793050000,-157.0,0.0002328,3]
[422283663,1778793050000,-625.0,0.00023699,2]
[422283662,1778793050000,-926.0,0.00023699,2]
[422283692,1778793050000,-1253.79,0.0002456,2]
[422283695,1778793050000,-1263.38,0.000246,2]
[422283691,1778793050000,-1253.78,0.00024558,2]
[422283697,1778793050000,-1463.0,0.00024658,2]
[422283707,1778793050000,-344.0,0.00024658,2]
[422283696,1778793050000,-1075.0,0.00024658,2]
[422283698,1778793050000,-263.0,0.00024658,2]
[422283700,1778793050000,-239.0,0.00024658,2]
[422283706,1778793050000,-362.0,0.00024658,2]
[422283699,1778793050000,-358.0,0.00024658,2]
[422283704,1778793050000,-358.0,0.00024658,2]
[422283703,1778793050000,-501.0,0.00024658,2]
[422283701,1778793050000,-597.0,0.00024658,2]
[422283705,1778793050000,-415.0,0.00024658,2]
[422283702,1778793050000,-575.0,0.00024658,2]
[422283709,1778793050000,-287.76318988,0.00024658,2]
[422283708,1778793050000,-301.0,0.00024658,2]
[422283711,1778793050000,-259.0,0.00024658,2]
[422283712,1778793050000,-215.0,0.00024658,2]
[422283713,1778793050000,-391.0,0.00024658,2]
[422283716,1778793050000,-244.0,0.00024658,2]
[422283659,1778793050000,-150.0,0.00023699,2]
[422283714,1778793050000,-341.0,0.00024658,2]
[422283715,1778793050000,-179.0,0.00024658,2]
[422283710,1778793050000,-251.0,0.00024658,2]
[422283694,1778793050000,-1253.78,0.0002456,2]
[422283690,1778793050000,-1253.78,0.00024558,2]
[422283717,1778793050000,-1232.0,0.00024658,2]
[422283687,1778793050000,-1253.78,0.00024556,2]
[422283693,1778793050000,-1253.78,0.0002456,2]
[422283672,1778793050000,-10593.2705128,0.00024,14]
[422283664,1778793050000,-3542.0,0.00023699,2]
[422283665,1778793050000,-1270.0,0.00023699,2]
[422283669,1778793050000,-270.3255266,0.00023801,2]
[422283666,1778793050000,-1223.0,0.00023699,2]
[422283668,1778793050000,-5415.01,0.00023699,2]
[422283670,1778793050000,-8163.28,0.00023819,2]
[422283671,1778793050000,-1036.98591685,0.00024,2]
[422283667,1778793050000,-3630.0,0.00023699,2]
[422283674,1778793050000,-1253.87965228,0.00024,2]
[422283673,1778793050000,-3600.0,0.00024,2]
[422283684,1778793050000,-308.71181382,0.000245,2]
[422283661,1778793050000,-150.0,0.00023699,2]
[422283675,1778793050000,-500.0,0.00024,2]
[422283676,1778793050000,-445.04,0.0002411,2]
[422283685,1778793050000,-308.71181379,0.000245,2]
[422283686,1778793050000,-308.71181379,0.000245,2]
[422283678,1778793050000,-277.0,0.00024164,7]
[422283683,1778793050000,-1291.11,0.000244,7]
[422283688,1778793050000,-1253.78,0.00024556,2]
[422283679,1778793050000,-2599.64318728,0.0002421,2]
[422283677,1778793050000,-172.0,0.00024164,7]
[422283681,1778793050000,-2254.1,0.00024324,2]
[422283680,1778793050000,-180.24546421,0.0002423,2]
[422283682,1778793050000,-568.0,0.00024397,2]
[422283689,1778793050000,-1253.78,0.00024558,2]
[422283750,1778793051000,-399.11817204,0.00024956,2]
[422283748,1778793051000,-2433.07,0.00024802,7]
[422283743,1778793051000,-151.0,0.00024658,2]
[422283751,1778793051000,-568.0,0.00024959,2]
[422283752,1778793051000,-1128.36314486,0.00025,2]
[422283744,1778793051000,-500.0,0.00024658,2]
[422283753,1778793051000,-210.17904466,0.00025,2]
[422283754,1778793051000,-1808.00850147,0.00025,2]
[422283745,1778793051000,-150.0,0.00024658,2]
[422283755,1778793051000,-540.0,0.00025,2]
[422283757,1778793051000,-3082.65079527,0.00025,2]
[422283747,1778793051000,-1672.11,0.000248,2]
[422283749,1778793051000,-2433.07,0.00024946,2]
[422283756,1778793051000,-618.67725719,0.00025,2]
[422283758,1778793051000,-105610.57396544,0.00025,7]
[422283760,1778793051000,-5804.81379214,0.00025,2]
[422283759,1778793051000,-2127.06986416,0.00025,2]
[422283768,1778793051000,-2433.07,0.00025234,7]
[422283762,1778793051000,-208.3309892,0.00025,30]
[422283761,1778793051000,-214.95940296,0.00025,7]
[422283741,1778793051000,-151.0,0.00024658,2]
[422283746,1778793051000,-2433.07,0.00024658,2]
[422283742,1778793051000,-151.0,0.00024658,2]
[422283726,1778793051000,-208.115934,0.00024658,2]
[422283737,1778793051000,-208.115934,0.00024658,2]
[422283766,1778793051000,-570.71993048,0.00025,2]
[422283720,1778793051000,-208.115934,0.00024658,2]
[422283718,1778793051000,-749.99,0.00024658,2]
[422283719,1778793051000,-208.115934,0.00024658,2]
[422283722,1778793051000,-208.115934,0.00024658,2]
[422283721,1778793051000,-208.115934,0.00024658,2]
[422283724,1778793051000,-208.115934,0.00024658,2]
[422283723,1778793051000,-208.115934,0.00024658,2]
[422283730,1778793051000,-208.115934,0.00024658,2]
[422283727,1778793051000,-208.115934,0.00024658,2]
[422283728,1778793051000,-208.115934,0.00024658,2]
[422283729,1778793051000,-208.115934,0.00024658,2]
[422283725,1778793051000,-208.115934,0.00024658,2]
[422283731,1778793051000,-208.115934,0.00024658,2]
[422283732,1778793051000,-208.115934,0.00024658,2]
[422283734,1778793051000,-208.115934,0.00024658,2]
[422283733,1778793051000,-208.115934,0.00024658,2]
[422283735,1778793051000,-208.115934,0.00024658,2]
[422283736,1778793051000,-208.115934,0.00024658,2]
[422283739,1778793051000,-1000.0,0.00024658,2]
[422283738,1778793051000,-208.115932,0.00024658,2]
[422283740,1778793051000,-151.0,0.00024658,2]
[422283765,1778793051000,-270.3255266,0.00025,2]
[422283774,1778793051000,-568.0,0.00025521,3]
[422283767,1778793051000,-2433.07,0.0002509,2]
[422283792,1778793051000,-4580.81237175,0.00026,2]
[422283794,1778793051000,-8508.0,0.00026,7]
[422283796,1778793051000,-6445.64661898,0.00026,2]
[422283798,1778793051000,-1182.15,0.00026027,2]
[422283795,1778793051000,-550.0,0.00026,2]
[422283797,1778793051000,-649.34,0.00026027,2]
[422283799,1778793051000,-1865.51,0.00026027,2]
[422283800,1778793051000,-644.91,0.00026027,2]
[422283801,1778793051000,-1182.11,0.00026027,2]
[422283803,1778793051000,-1313.87,0.00026027,2]
[422283804,1778793051000,-317.88,0.00026027,7]
[422283802,1778793051000,-1861.16,0.00026027,2]
[422283807,1778793051000,-235.0,0.00026027,2]
[422283806,1778793051000,-300.0,0.00026027,2]
[422283805,1778793051000,-300.0,0.00026027,2]
[422283808,1778793051000,-500.0,0.00026028,2]
[422283809,1778793051000,-649.34,0.00026055,7]
[422283811,1778793051000,-1865.51,0.00026055,7]
[422283812,1778793051000,-644.91,0.00026055,7]
[422283814,1778793051000,-1861.16,0.00026055,7]
[422283763,1778793051000,-208.3309892,0.00025,7]
[422283793,1778793051000,-219.24301899,0.00026,2]
[422283790,1778793051000,-2433.07,0.00025955,2]
[422283810,1778793051000,-1182.15,0.00026055,7]
[422283787,1778793051000,-2433.07,0.00025811,2]
[422283789,1778793051000,-262.97,0.00025891,7]
[422283764,1778793051000,-6445.64661898,0.00025,2]
[422283770,1778793051000,-2433.07,0.00025378,7]
[422283772,1778793051000,-792.82727649,0.00025397,2]
[422283773,1778793051000,-6445.64661898,0.000255,2]
[422283771,1778793051000,-263.30688069,0.00025397,2]
[422283813,1778793051000,-1182.11,0.00026055,7]
[422283775,1778793051000,-2433.07,0.00025523,2]
[422283778,1778793051000,-2433.07,0.00025667,7]
[422283776,1778793051000,-157.0,0.000256,3]
[422283769,1778793051000,-6445.64661898,0.000253,2]
[422283777,1778793051000,-724.85,0.00025644,2]
[422283779,1778793051000,-8508.0,0.000257,7]
[422283785,1778793051000,-208.3309892,0.000258,7]
[422283781,1778793051000,-775.47832561,0.00025723,2]
[422283784,1778793051000,-214.95940296,0.000258,7]
[422283786,1778793051000,-6445.64661898,0.000258,2]
[422283783,1778793051000,-272.0,0.00025775,7]
[422283791,1778793051000,-608.54956322,0.0002599,2]
[422283780,1778793051000,-668.65185757,0.00025723,2]
[422283782,1778793051000,-8163.28,0.00025729,7]
[422283788,1778793051000,-40378.48120981,0.0002589,5]
[422283835,1778793052000,-644.91,0.00026142,7]
[422283834,1778793052000,-1865.51,0.00026142,7]
[422283841,1778793052000,-1865.51,0.00026171,7]
[422283839,1778793052000,-649.34,0.00026171,30]
[422283838,1778793052000,-1313.87,0.00026142,7]
[422283843,1778793052000,-1182.11,0.00026171,7]
[422283840,1778793052000,-1182.15,0.00026171,7]
[422283842,1778793052000,-644.91,0.00026171,30]
[422283851,1778793052000,-1182.11,0.000262,2]
[422283844,1778793052000,-1861.16,0.00026171,7]
[422283846,1778793052000,-270.3255266,0.00026199,2]
[422283853,1778793052000,-1313.87,0.000262,2]
[422283848,1778793052000,-1182.15,0.000262,2]
[422283850,1778793052000,-644.91,0.000262,2]
[422283852,1778793052000,-1861.16,0.000262,2]
[422283837,1778793052000,-1861.16,0.00026142,7]
[422283849,1778793052000,-1865.51,0.000262,2]
[422283845,1778793052000,-1313.87,0.00026171,7]
[422283836,1778793052000,-1182.11,0.00026142,7]
[422283824,1778793052000,-2433.07,0.00026099,7]
[422283832,1778793052000,-649.34,0.00026142,7]
[422283855,1778793052000,-1182.15,0.00026229,7]
[422283815,1778793052000,-1313.87,0.00026055,7]
[422283816,1778793052000,-568.0,0.00026082,3]
[422283818,1778793052000,-1182.15,0.00026084,2]
[422283819,1778793052000,-1865.51,0.00026084,2]
[422283821,1778793052000,-1182.11,0.00026084,2]
[422283817,1778793052000,-649.34,0.00026084,30]
[422283820,1778793052000,-644.91,0.00026084,30]
[422283822,1778793052000,-1861.16,0.00026084,2]
[422283823,1778793052000,-1313.87,0.00026084,2]
[422283825,1778793052000,-649.34,0.00026113,2]
[422283827,1778793052000,-1865.51,0.00026113,2]
[422283826,1778793052000,-1182.15,0.00026113,2]
[422283829,1778793052000,-1182.11,0.00026113,2]
[422283828,1778793052000,-644.91,0.00026113,2]
[422283830,1778793052000,-1861.16,0.00026113,2]
[422283831,1778793052000,-1313.87,0.00026113,2]
[422283833,1778793052000,-1182.15,0.00026142,7]
[422283854,1778793052000,-649.34,0.00026229,7]
[422283847,1778793052000,-649.34,0.000262,2]
[422283857,1778793052000,-644.91,0.00026229,7]
[422283880,1778793052000,-1182.15,0.00026315,7]
[422283881,1778793052000,-1865.51,0.00026315,7]
[422283883,1778793052000,-1182.11,0.00026315,7]
[422283882,1778793052000,-644.91,0.00026315,7]
[422283887,1778793052000,-1182.15,0.00026344,7]
[422283885,1778793052000,-1313.87,0.00026315,7]
[422283884,1778793052000,-1861.16,0.00026315,7]
[422283890,1778793052000,-1182.11,0.00026344,7]
[422283872,1778793052000,-644.91,0.00026286,2]
[422283886,1778793052000,-649.34,0.00026344,30]
[422283889,1778793052000,-644.91,0.00026344,30]
[422283891,1778793052000,-1861.16,0.00026344,7]